Workbook

Sheet Summary
A3: Paragon Mortgages (No.21) PLC
A5: Information as at the Principal Determination Date | B5: 2015-02-27 | C5: 2015-05-29 | D5: 2015-08-28 | E5: 2015-11-30 | F5: 2016-02-29 | G5: 2016-05-31 | H5: 2016-08-31 | I5: 2016-11-30 | J5: 2017-02-28 | K5: 2017-05-31 | L5: 2017-08-31 | M5: 2017-11-30 | N5: 2018-02-28 | O5: 2018-05-31 | P5: 2018-08-31 | Q5: 2018-11-30
A6: Mortgage Asset Balance | B6: 245936 | C6: 241452.2607 | D6: 237308 | E6: 234741.4378 | F6: 231471.3092 | G6: 226116.0482 | H6: 197671.499 | I6: 152844.3893 | J6: 124551.7603 | K6: 108394.3487 | L6: 93237.05021 | M6: 81915.36737 | N6: 74273.73554 | O6: 66770.22422 | P6: 61457.82084 | Q6: 0
A7: Discretionary Further Advance Prefunding Reserve | B7: 2175 | C7: 2154 | D7: 2039 | E7: 1197 | F7: 816 | G7: 0 | H7: 0 | I7: 0 | J7: 0 | K7: 0 | L7: 0 | M7: 0 | N7: 0 | O7: 0 | P7: 0 | Q7: 0
A8: Total Assets | B8: =+B6+B7 -> 248111 | C8: 243606.2607 | D8: 239347 | E8: 235938.4378 | F8: 232287.3092 | G8: 226116.0482 | H8: =+H6+H7 -> 197671.499 | I8: 152844.3893 | J8: =+J6+J7 -> 124551.7603 | K8: 108394.3487 | L8: =+L6+L7 -> 93237.05021 | M8: 81915.36737 | N8: =+N6+N7 -> 74273.73554 | O8: 66770.22422 | P8: =+P6+P7 -> 61457.82084 | Q8: 0
A9: Total Notes | B9: =SUM(B10:B13) -> 248111 | C9: 243606 | D9: 239347 | E9: 235938 | F9: 232287 | G9: 226116 | H9: =SUM(H10:H13) -> 197671 | I9: 152844 | J9: =SUM(J10:J13) -> 124552 | K9: 108394 | L9: =SUM(L10:L13) -> 93237 | M9: 81915 | N9: =SUM(N10:N13) -> 74274 | O9: 66770 | P9: =SUM(P10:P13) -> 61458 | Q9: 0
A10: Class A Notes | B10: 216011 | C10: 211506 | D10: 207247 | E10: 203838 | F10: 200187 | G10: 194016 | H10: 165571 | I10: 120744 | J10: 92452 | K10: 76294 | L10: 61137 | M10: 49815 | N10: 42174 | O10: 34670 | P10: 29358 | Q10: 0
A11: Class B Notes | B11: 17700 | C11: 17700 | D11: 17700 | E11: 17700 | F11: 17700 | G11: 17700 | H11: 17700 | I11: 17700 | J11: 17700 | K11: 17700 | L11: 17700 | M11: 17700 | N11: 17700 | O11: 17700 | P11: 17700 | Q11: 0
A12: Class C Notes | B12: 8100 | C12: 8100 | D12: 8100 | E12: 8100 | F12: 8100 | G12: 8100 | H12: 8100 | I12: 8100 | J12: 8100 | K12: 8100 | L12: 8100 | M12: 8100 | N12: 8100 | O12: 8100 | P12: 8100 | Q12: 0
A13: Class D Notes | B13: 6300 | C13: 6300 | D13: 6300 | E13: 6300 | F13: 6300 | G13: 6300 | H13: 6300 | I13: 6300 | J13: 6300 | K13: 6300 | L13: 6300 | M13: 6300 | N13: 6300 | O13: 6300 | P13: 6300 | Q13: 0
A14: Class B, C and D Notes as a % of the Total Notes | B14: =SUM(B11:B13)/B9 -> 0.129377577 | C14: 0.1317701534 | D14: 0.1341149043 | E14: 0.1360526918 | F14: 0.138191117 | G14: 0.1419625325 | H14: =SUM(H11:H13)/H9 -> 0.1623910437 | I14: 0.2100180576 | J14: =SUM(J11:J13)/J9 -> 0.2577236817 | K14: 0.2961418529 | L14: =SUM(L11:L13)/L9 -> 0.3442839216 | M14: 0.3918696209 | N14: =SUM(N11:N13)/N9 -> 0.4321835366 | O14: 0.48075483 | P14: =SUM(P11:P13)/P9 -> 0.5223079176 | Q14: 0
A15: Lifetime Redemption Rate | B15: 0.0258 | C15: 0.0462 | D15: 0.0532 | E15: 0.0513 | F15: 0.0532 | G15: 0.0594 | H15: 0.1186 | I15: 0.2089 | J15: 0.2568 | K15: 0.2758 | L15: 0.2934 | M15: 0.3031 | N15: 0.3047 | O15: 0.3077 | P15: 0.3063 | Q15: 1
A16: Quarterly Redemption Rate | B16: 0.0098 | C16: 0.0188 | D16: 0.0178 | E16: 0.0114 | F16: 0.0157 | G16: 0.0238 | H16: 0.1261 | I16: 0.2268 | J16: 0.1851 | K16: 0.1316 | L16: 0.1398 | M16: 0.1214 | N16: 0.0933 | O16: 0.101 | P16: 0.0807 | Q16: 1
A17: Further Advances released in the quarter | B17: 0 | C17: 21 | D17: 115 | E17: 119 | F17: 381 | G17: 130 | H17: 59 | I17: 6 | J17: 0 | K17: 238 | L17: 0 | M17: 0 | N17: 0 | O17: 0 | P17: 78 | Q17: 0
A18: First Loss Fund Balance | B18: 6250 | C18: 6250 | D18: 6250 | E18: 6250 | F18: 6250 | G18: 6250 | H18: 6250 | I18: 6250 | J18: 6250 | K18: 6250 | L18: 6250 | M18: 6250 | N18: 6250 | O18: 6250 | P18: 6250 | Q18: 0
A19: Liquidity Amount of the First Loss Fund (2.50% of the Class A, B and C Notes) | B19: =SUM(B10:B12)*2.5% -> 6045.275 | C19: 5932.65 | D19: 5826.175 | E19: 5740.95 | F19: 5649.675 | G19: 5495.4 | H19: =SUM(H10:H12)*2.5% -> 4784.275 | I19: 3663.6 | J19: =SUM(J10:J12)*2.5% -> 2956.3 | K19: 2552.35 | L19: =SUM(L10:L12)*2.5% -> 2173.425 | M19: 1890.375 | N19: =SUM(N10:N12)*2.5% -> 1699.35 | O19: 1511.75 | P19: =SUM(P10:P12)*2.5% -> 1378.95 | Q19: 0
A20: Liquidity Excess Amount (First Loss Fund - Liquidity Amount) | B20: =B18-B19 -> 204.725 | C20: 317.35 | D20: 423.825 | E20: 509.05 | F20: 600.325 | G20: 754.6 | H20: =H18-H19 -> 1465.725 | I20: 2586.4 | J20: =J18-J19 -> 3293.7 | K20: 3697.65 | L20: =L18-L19 -> 4076.575 | M20: 4359.625 | N20: =N18-N19 -> 4550.65 | O20: 4738.25 | P20: =P18-P19 -> 4871.05 | Q20: 0
A21: First Loss Fund as a % of the Assets | B21: =+B18/B8 -> 0.0251903382 | C21: =+C18/C6 -> 0.0258850341 | D21: 0.02633708092 | E21: 0.02662503927 | F21: 0.02700118655 | G21: 0.02764067411 | H21: 0.03161811404 | I21: =+I18/I6 -> 0.04089126221 | J21: 0.05017994114 | K21: =+K18/K6 -> 0.05765983258 | L21: 0.06703343774 | M21: =+M18/M6 -> 0.07629826003 | N21: 0.08414818448 | O21: =+O18/O6 -> 0.09360459805 | P21: 0.1016957633 | Q21: 0
A22: Opening PDL Balance | B22: 0 | C22: 0 | D22: 0 | E22: 0 | F22: 0 | G22: 0 | H22: 0 | I22: 0 | J22: 0 | K22: 0 | L22: 0 | M22: 0 | N22: 0 | O22: 0 | P22: 0 | Q22: 0
A23: Quarterly Losses | B23: =+B91+B121 -> 0 | C23: 0 | D23: 0 | E23: 0 | F23: 0 | G23: 0 | H23: =+H91+H121 -> 0 | I23: 0 | J23: =+J91+J121 -> 0 | K23: 0 | L23: =+L91+L121 -> 0 | M23: 0 | N23: =+N91+N121 -> 0 | O23: 0 | P23: =+P91+P121 -> 0 | Q23: 0
A24: Quarterly Loss Rate (annualised) | B24: =1-(1-B23/B6)^4 -> 0 | C24: 0 | D24: 0 | E24: 0 | F24: 0 | G24: 0 | H24: =1-(1-H23/H6)^4 -> 0 | I24: 0 | J24: =1-(1-J23/J6)^4 -> 0 | K24: 0 | L24: =1-(1-L23/L6)^4 -> 0 | M24: 0 | N24: =1-(1-N23/N6)^4 -> 0 | O24: 0 | P24: =1-(1-P23/P6)^4 -> 0 | Q24: 0
A25: PDL Replenishment made during the quarter (-ve = recoveries) | B25: 0 | C25: 0 | D25: 0 | E25: 0 | F25: 0 | G25: 0 | H25: 0 | I25: 0 | J25: 0 | K25: 0 | L25: 0 | M25: 0 | N25: 0 | O25: 0 | P25: 0 | Q25: 0
A26: Outstanding PDL at end of the quarter | B26: =B22+B23-B25 -> 0 | C26: 0 | D26: 0 | E26: 0 | F26: 0 | G26: 0 | H26: =H22+H23-H25 -> 0 | I26: 0 | J26: =J22+J23-J25 -> 0 | K26: 0 | L26: =L22+L23-L25 -> 0 | M26: 0 | N26: =N22+N23-N25 -> 0 | O26: 0 | P26: =P22+P23-P25 -> 0 | Q26: 0
A27: Spread Trap repayment in the quarter | B27: N/A | C27: N/A | D27: N/A | E27: N/A | F27: N/A | G27: N/A | H27: N/A | I27: N/A | J27: N/A | K27: N/A | L27: N/A | M27: N/A | N27: N/A | O27: N/A | P27: N/A | Q27: N/A
A28: Spread % (WA Funding Rate less WA Interest Rate) | B28: 0.0263 | C28: 0.0267 | D28: 0.0266 | E28: 0.0264 | F28: 0.0265 | G28: 0.0268 | H28: 0.0305 | I28: 0.0356 | J28: 0.0351 | K28: 0.0343 | L28: 0.0339 | M28: 0.033 | N28: 0.0316 | O28: 0.0312 | P28: 0.03 | Q28: 0
A29: Total Income as a % of the Assets | B29: 0.0148 | C29: 0.0123 | D29: 0.0123 | E29: 0.0124 | F29: 0.0125 | G29: 0.0124 | H29: 0.0119 | I29: 0.0114 | J29: 0.0122 | K29: 0.0125 | L29: 0.0117 | M29: 0.0128 | N29: 0.0129 | O29: 0.0135 | P29: 0.0139 | Q29: 0
A30: Quarterly surplus income to the Issuer (inc Issuer Services Provider Fee) | B30: 1849 | C30: 1651 | D30: 1603 | E30: 1599 | F30: 1580 | G30: 1538 | H30: 1431 | I30: 1269 | J30: 1132 | K30: 941 | L30: 734 | M30: 719 | N30: 607 | O30: 561 | P30: 511 | Q30: 7315
A31: Surplus Income as a % of the Assets | B31: =+B30/250000 -> 0.007396 | C31: =+C30/B8 -> 0.006654279738 | D31: 0.006580290653 | E31: 0.006680677009 | F31: 0.006696662123 | G31: 0.00662111075 | H31: 0.006328608744 | I31: 0.006419741875 | J31: 0.007406225411 | K31: 0.007555091938 | L31: 0.006771570738 | M31: 0.007711526677 | N31: 0.007410087014 | O31: 0.007553141039 | P31: 0.007653111937 | Q31: 0
A32: Losses as a % of the Assets | B32: =+B23/250000 -> 0 | C32: =+C23/B8 -> 0 | D32: 0 | E32: 0 | F32: 0 | G32: 0 | H32: 0 | I32: 0 | J32: 0 | K32: 0 | L32: 0 | M32: 0 | N32: 0 | O32: 0 | P32: 0 | Q32: 0
A33: Number of Properties in Possession | B33: =+B89+B119 -> 0 | C33: 0 | D33: 0 | E33: 0 | F33: 0 | G33: =+G89+G119 -> 0 | H33: 0 | I33: 0 | J33: =+J89+J119 -> 0 | K33: 0 | L33: =+L89+L119 -> 0 | M33: 0 | N33: =+N89+N119 -> 0 | O33: 0 | P33: =+P89+P119 -> 0 | Q33: 0
A34: Appointment of a Receiver of Rent | B34: 0 | C34: 0 | D34: 0 | E34: 0 | F34: 0 | G34: =+G90+G120 -> 0 | H34: 0 | I34: 0 | J34: =+J90+J120 -> 0 | K34: 0 | L34: =+L90+L120 -> 0 | M34: 1 | N34: =+N90+N120 -> 2 | O34: 1 | P34: =+P90+P120 -> 1 | Q34: 0
A35: Average Number of months (Possessions) in Arrears at the Sale Date | B35: 0 | C35: 0 | D35: 0 | E35: 0 | F35: 0 | G35: 0 | H35: 0 | I35: 0 | J35: 0 | K35: 0 | L35: 0 | M35: 0 | N35: 0 | O35: 0 | P35: 0 | Q35: 0
A36: Average Number of months (RoR) in Arrears at the Sale Date | B36: 0 | C36: 0 | D36: 0 | E36: 0 | F36: 0 | G36: 0 | H36: 0 | I36: 0 | J36: 0 | K36: 0 | L36: 0 | M36: 0 | N36: 0 | O36: 0 | P36: 0 | Q36: 0
A37: Arrears excluding Receiver of Rent and Possession Cases
A38: Performing Loans | B38: 1 | C38: 1 | D38: 1 | E38: 1 | F38: 1 | G38: 1 | H38: 0.9991901969 | I38: 0.9991216557 | J38: 0.999035943 | K38: 1 | L38: 0.9964075602 | M38: 0.9982991366 | N38: 1 | O38: 1 | P38: 1 | Q38: 0
A39: >1 to 2 months arrears | B39: 0 | C39: 0 | D39: 0 | E39: 0 | F39: 0 | G39: 0 | H39: 0.0008098031369 | I39: 0 | J39: 0.0009640570291 | K39: 0 | L39: 0.001494883093 | M39: 0.001700863371 | N39: 0 | O39: 0 | P39: 0 | Q39: 0
A40: >2 to 3 months arrears | B40: 0 | C40: 0 | D40: 0 | E40: 0 | F40: 0 | G40: 0 | H40: 0 | I40: 0 | J40: 0 | K40: 0 | L40: 0.002097556707 | M40: 0 | N40: 0 | O40: 0 | P40: 0 | Q40: 0
A41: >3 months arrears | B41: 0 | C41: 0 | D41: 0 | E41: 0 | F41: 0 | G41: 0 | H41: 0 | I41: 0.0008783443122 | J41: 0 | K41: 0 | L41: 0 | M41: 0 | N41: 0 | O41: 0 | P41: 0 | Q41: 0
A42: Total | B42: =SUM(B38:B41) -> 1 | C42: 1 | D42: 1 | E42: 1 | F42: 1 | G42: 1 | H42: 1 | I42: 1 | J42: 1 | K42: 1 | L42: 1 | M42: 1 | N42: 1 | O42: 1 | P42: 1 | Q42: =SUM(Q38:Q41) -> 0
A43: Total Value of Arrears (£000's) | B43: 0.0001600464 | C43: 0 | D43: 0 | E43: 0.58769 | F43: 0 | G43: 1.72799 | H43: 1.313509869 | I43: 2.857199497 | J43: 1.415910304 | K43: 0.9929996564 | L43: 3.715029881 | M43: 7.272319275 | N43: 7.693300609 | O43: 10.1623492 | P43: 13.10980045 | Q43: 0
A44: Total Value of Arrears as a % of the Notes Issued (£250,000,000) | B44: =+B43/250000 -> 6.401856e-10 | C44: 0 | D44: 0 | E44: 2.35076e-06 | F44: 0 | G44: 6.91196e-06 | H44: =+H43/250000 -> 5.254039476e-06 | I44: 1.142879799e-05 | J44: =+J43/250000 -> 5.663641217e-06 | K44: 3.971998626e-06 | L44: =+L43/250000 -> 1.486011952e-05 | M44: 2.90892771e-05 | N44: =+N43/250000 -> 3.077320243e-05 | O44: 4.06493968e-05 | P44: =+P43/250000 -> 5.243920181e-05 | Q44: 0
A46: Underlying Assets | B46: =+B5 -> 2015-02-27 | C46: 2015-05-29 | D46: 2015-08-28 | E46: 2015-11-30 | F46: 2016-02-29 | G46: 2016-05-31 | H46: =+H5 -> 2016-08-31 | I46: 2016-11-30 | J46: =+J5 -> 2017-02-28 | K46: 2017-05-31 | L46: =+L5 -> 2017-08-31 | M46: 2017-11-30 | N46: =+N5 -> 2018-02-28 | O46: 2018-05-31 | P46: =+P5 -> 2018-08-31 | Q46: 2018-11-30
A47: Weighted Average LTV | B47: 0.7176996593 | C47: 0.7189478753 | D47: 0.719077955 | E47: 0.7193446301 | F47: 0.719520896 | G47: 0.7176731689 | H47: 0.713387823 | I47: 0.7062253951 | J47: 0.7023023046 | K47: 0.7050641909 | L47: 0.7033235174 | M47: 0.7018878637 | N47: 0.7026188911 | O47: 0.7024363405 | P47: 0.7002405589 | Q47: 0
A48: Weighted Average Nationwide Indexed LTV | B48: 0.711052193 | C48: 0.7122685627 | D48: 0.6892506441 | E48: 0.681366451 | F48: 0.6756200675 | G48: 0.6694336388 | H48: 0.6471419612 | I48: 0.6434607924 | J48: 0.6423850789 | K48: 0.6437277906 | L48: 0.6354255704 | M48: 0.6318995994 | N48: 0.6348710182 | O48: 0.6323945189 | P48: 0.6254561587 | Q48: 0
A49: Weighted Average Halifax Indexed LTV | B49: 0.7097325747 | C49: 0.695107643 | D49: 0.6608289711 | E49: 0.648760504 | F49: 0.647935811 | G49: 0.6193008276 | H49: 0.6040179401 | I49: n/a | J49: n/a | K49: n/a | L49: n/a | M49: n/a | N49: n/a | O49: n/a | P49: n/a | Q49: n/a
A50: % of Fixed Rate Mortgages (reverting to Libor plus a variable margin) | B50: 0.6660899554 | C50: 0.6777119148 | D50: 0.6863325316 | E50: 0.6902312122 | F50: 0.6889567506 | G50: 0.6467240782 | H50: 0.3629760907 | I50: 0.2165328825 | J50: 0.2412073532 | K50: 0.288428592 | L50: 0.3332798583 | M50: 0.339103374 | N50: 0.3713095741 | O50: 0.4049827801 | P50: 0.4169199443 | Q50: 0
A51: % of Libor Linked Mortgages (reverting to Libor plus a variable margin) | B51: 0.3084223825 | C51: 0.2963585423 | D51: 0.2873175006 | E51: 0.2831637023 | F51: 0.2798067863 | G51: 0.281714395 | H51: 0.2605486159 | I51: 0.06282358642 | J51: 0.04707291881 | K51: 0.06051876871 | L51: 0.06315476526 | M51: 0.06935622194 | N51: 0.07648594794 | O51: 0.07493122928 | P51: 0.06450543472 | Q51: 0
A52: % of Libor Linked Mortgages plus a Variable Margin | B52: 0 | C52: 0 | D52: 0 | E52: 0 | F52: 0.004289430096 | G52: 0.04400036065 | H52: 0.3449887819 | I52: 0.6786643226 | J52: 0.6602716717 | K52: 0.5971432071 | L52: 0.5456293653 | M52: 0.5334096373 | N52: 0.4972816204 | O52: 0.4641271396 | P52: 0.4590156077 | Q52: 0
A53: % of Non Reversionary Libor Linked Mortgages | B53: 0.02548766211 | C53: 0.02592954294 | D53: 0.02634996774 | E53: 0.02660508557 | F53: 0.02694703305 | G53: 0.02756116622 | H53: 0.03148651151 | I53: 0.04197920845 | J53: 0.05144805633 | K53: 0.05390943217 | L53: 0.05793601114 | M53: 0.0581307667 | N53: 0.05492285759 | O53: 0.05595885102 | P53: 0.05955901332 | Q53: 0
A54: Weighted Average Loan Size | B54: 156746.8494 | C54: 155976.9126 | D54: 155205.1574 | E54: 155047.1848 | F54: 155245.6802 | G54: 154980.1564 | H54: 154430.8586 | I54: 151181.394 | J54: 152824.2458 | K54: 150547.7066 | L54: 146830.0003 | M54: 145240.0131 | N54: 145920.895 | O54: 145468.8981 | P54: 146677.3767 | Q54: 0
A55: Weighted Average Interest Rate | B55: 0.04139201007 | C55: 0.04141603026 | D55: 0.04140765699 | E55: 0.04141051013 | F55: 0.04142508209 | G55: 0.04187996367 | H55: 0.04539654245 | I55: 0.0487438799 | J55: 0.04859860371 | K55: 0.04791451416 | L55: 0.0472317709 | M55: 0.04707301171 | N55: 0.04798745524 | O55: 0.04881246504 | P55: 0.04826692664 | Q55: 0
A56: Weighted Average Maturity Date (years) | B56: 19.95312774 | C56: 19.69473337 | D56: 19.44056842 | E56: 19.21285235 | F56: 18.9787719 | G56: 18.70442155 | H56: 18.4127032 | I56: 18.14309469 | J56: 17.72739483 | K56: 17.44344995 | L56: 17.18424121 | M56: 16.81748445 | N56: 16.55747551 | O56: 16.2428154 | P56: 15.92020348 | Q56: 0
A57: Weighted Average Seasoning (months) | B57: 5.524484961 | C57: 8.537553734 | D57: 11.55621776 | E57: 14.54242676 | F57: 17.53496549 | G57: 20.54676972 | H57: 23.46016455 | I57: 26.41455483 | J57: 29.39112033 | K57: 32.45505756 | L57: 35.4289212 | M57: 38.44551623 | N57: 41.39047304 | O57: 44.42813628 | P57: 47.4407328 | Q57: 0
A58: % of Interest Only Mortgages (optional switching to repayment) | B58: 0.9266466269 | C58: 0.9258288545 | D58: 0.9251160898 | E58: 0.9248918865 | F58: 0.9227286064 | G58: 0.9211931231 | H58: 0.9259424711 | I58: 0.9249935545 | J58: 0.9340237811 | K58: 0.9348507808 | L58: 0.9298091734 | M58: 0.9240228309 | N58: 0.9318627757 | O58: 0.9332918337 | P58: 0.9388657688 | Q58: 0
A59: % of Repayment Mortgages | B59: 0.07335337308 | C59: 0.07417114547 | D59: 0.07488391019 | E59: 0.07510811351 | F59: 0.07727139356 | G59: 0.07880687691 | H59: 0.07405752888 | I59: 0.07500644552 | J59: 0.06597621889 | K59: 0.06514921924 | L59: 0.07019082656 | M59: 0.07597716912 | N59: 0.06813722433 | O59: 0.06670816628 | P59: 0.06113423123 | Q59: 0
A60: % of Mortgages in London | B60: 0.2181839902 | C60: 0.2156101329 | D60: 0.2146993619 | E60: 0.2149020276 | F60: 0.2116763236 | G60: 0.2096791708 | H60: 0.2023393693 | I60: 0.1946371026 | J60: 0.1859269135 | K60: 0.1693858713 | L60: 0.1611741774 | M60: 0.1645671713 | N60: 0.1705930861 | O60: 0.1647151009 | P60: 0.16895753 | Q60: 0
A61: % of Mortgages in the South East | B61: 0.3676301914 | C61: 0.3669242434 | D61: 0.3686530624 | E61: 0.3695689298 | F61: 0.3706436136 | G61: 0.3675620791 | H61: 0.3646141066 | I61: 0.3403536307 | J61: 0.3472725244 | K61: 0.3456887093 | L61: 0.3386005682 | M61: 0.3355382626 | N61: 0.3267151065 | O61: 0.3390797304 | P61: 0.3457003758 | Q61: 0
A62: % of Owner Occupied Mortgages | B62: 0 | C62: 0 | D62: 0 | E62: 0 | F62: 0 | G62: 0 | H62: 0 | I62: 0 | J62: 0 | K62: 0 | L62: 0 | M62: 0 | N62: 0 | O62: 0 | P62: 0 | Q62: 0
A63: % of Investment Home Loans - Professional Landlords | B63: 0.4949522151 | C63: 0.507011379 | D63: 0.5082413253 | E63: 0.5113215344 | F63: 0.5107290959 | G63: 0.5164654872 | H63: 0.521634208 | I63: 0.5433544073 | J63: 0.551981551 | K63: 0.5534216333 | L63: 0.5655510266 | M63: 0.5511487984 | N63: 0.5427862385 | O63: 0.5461946608 | P63: 0.5500251707 | Q63: 0
A64: % of Investment Home Loans - Emerging Professional Landlords | B64: 0.5050477849 | C64: 0.492988621 | D64: 0.4917586747 | E64: 0.4886784656 | F64: 0.4892709041 | G64: 0.4835345128 | H64: 0.478365792 | I64: 0.4566455927 | J64: 0.448018449 | K64: 0.4465783667 | L64: 0.4344489734 | M64: 0.4488512016 | N64: 0.4572137615 | O64: 0.4538053392 | P64: 0.4499748293 | Q64: 0
A65: Weighted Average Interest Coverage Ratio (calculated at the origination date) | B65: 1.466198018 | C65: 1.467787753 | D65: 1.467972246 | E65: 1.46557939 | F65: 1.468302248 | G65: 1.46838442 | H65: 1.478276251 | I65: 1.489932924 | J65: 1.495309242 | K65: 1.511459735 | L65: 1.520627343 | M65: 1.5092455 | N65: 1.52030076 | O65: 1.528759443 | P65: 1.521193331 | Q65: 0
A66: % of Paragon Originated Assets | B66: 0.148835487 | C66: 0.1516105365 | D66: 0.1529634124 | E66: 0.1536713563 | F66: 0.1547444252 | G66: 0.157871214 | H66: 0.1780121278 | I66: 0.2147961762 | J66: 0.2455760574 | K66: 0.2646019392 | L66: 0.2744807456 | M66: 0.2748960928 | N66: 0.2750136171 | O66: 0.2879543077 | P66: 0.2986959716 | Q66: 0
A67: % of Mortgage Trust Originated Assets | B67: 0.851164513 | C67: 0.8483894635 | D67: 0.8470365876 | E67: 0.8463286437 | F67: 0.8452555748 | G67: 0.842128786 | H67: 0.8219878722 | I67: 0.7852038238 | J67: 0.7544239426 | K67: 0.7353980608 | L67: 0.7255192544 | M67: 0.7251039072 | N67: 0.7249863829 | O67: 0.7120456923 | P67: 0.7013040284 | Q67: 0
A69: Underlying Assets - Paragon Mortgages 2010 Paragon Originated Assets | B69: =+B5 -> 2015-02-27 | C69: 2015-05-29 | D69: 2015-08-28 | E69: 2015-11-30 | F69: 2016-02-29 | G69: 2016-05-31 | H69: =+H5 -> 2016-08-31 | I69: 2016-11-30 | J69: =+J5 -> 2017-02-28 | K69: 2017-05-31 | L69: =+L5 -> 2017-08-31 | M69: 2017-11-30 | N69: =+N5 -> 2018-02-28 | O69: 2018-05-31 | P69: =+P5 -> 2018-08-31 | Q69: 2018-11-30
A70: Weighted Average LTV | B70: 0.7112580541 | C70: 0.7109984498 | D70: 0.7093807499 | E70: 0.7093891571 | F70: 0.713062905 | G70: 0.7115652281 | H70: 0.7065081513 | I70: 0.7035336649 | J70: 0.7027284649 | K70: 0.7057251136 | L70: 0.7067908342 | M70: 0.7079292729 | N70: 0.7103998031 | O70: 0.7143767977 | P70: 0.7093472256 | Q70: 0
A71: Weighted Average Nationwide Indexed LTV | B71: 0.7058708508 | C71: 0.7068123997 | D71: 0.6827592385 | E71: 0.6752163951 | F71: 0.6754146057 | G71: 0.6684904599 | H71: 0.6454363509 | I71: 0.6399553612 | J71: 0.6402746061 | K71: 0.6405614152 | L71: 0.6346777148 | M71: 0.6298950282 | N71: 0.6337595186 | O71: 0.6348766323 | P71: 0.6282133208 | Q71: 0
A72: Weighted Average Halifax Indexed LTV | B72: 0.7046410755 | C72: 0.6901725209 | D72: 0.6568421393 | E72: 0.6462990195 | F72: 0.650329731 | G72: 0.6226974182 | H72: 0.605725342 | I72: n/a | J72: n/a | K72: n/a | L72: n/a | M72: n/a | N72: n/a | O72: n/a | P72: n/a | Q72: n/a
A73: % of Fixed Rate Mortgages (reverting to Libor plus a variable margin) | B73: 0.6323194231 | C73: 0.6320826452 | D73: 0.6292224965 | E73: 0.6356071566 | F73: 0.6088243716 | G73: 0.5752656472 | H73: 0.3822914554 | I73: 0.203607716 | J73: 0.2305347201 | K73: 0.2670431301 | L73: 0.3429847238 | M73: 0.3895818666 | N73: 0.4292379566 | O73: 0.455757098 | P73: 0.4746577007 | Q73: 0
A74: % of Libor Linked Mortgages (reverting to Libor plus a variable margin) | B74: 0.1964333655 | C74: 0.1968900402 | D74: 0.198514298 | E74: 0.1912630799 | F74: 0.2004607814 | G74: 0.2011001147 | H74: 0.1697909008 | I74: 0.07222717496 | J74: 0.08700534248 | K74: 0.09877780714 | L74: 0.08448005091 | M74: 0.09601091893 | N74: 0.105843724 | O74: 0.09803699312 | P74: 0.09209250358 | Q74: 0
A75: % of Libor Linked Mortgages plus a Variable Margin | B75: 0 | C75: 0 | D75: 0 | E75: 0 | F75: 0.01657588837 | G75: 0.04905417685 | H75: 0.2710391811 | I75: 0.5348412415 | J75: 0.4795224104 | K75: 0.4304412053 | L75: 0.3614602699 | M75: 0.3029427076 | N75: 0.2652087262 | O75: 0.2518735113 | P75: 0.2338530211 | Q75: 0
A76: % of Non Reversionary Libor Linked Mortgages | B76: 0.1712472114 | C76: 0.1710273146 | D76: 0.1722632055 | E76: 0.1731297635 | F76: 0.1741389586 | G76: 0.1745800613 | H76: 0.1768784627 | I76: 0.1893238676 | J76: 0.202937527 | K76: 0.2037378575 | L76: 0.2110749554 | M76: 0.2114645069 | N76: 0.1997095932 | O76: 0.1943323976 | P76: 0.1993967746 | Q76: 0
A77: Weighted Average Loan Size | B77: 182109.3311 | C77: 182122.9194 | D77: 182409.7806 | E77: 182187.0461 | F77: 184633.4778 | G77: 184959.6635 | H77: 185199.6008 | I77: 181383.3723 | J77: 184258.6158 | K77: 185040.9992 | L77: 181501.9508 | M77: 175923.5502 | N77: 180763.6165 | O77: 179689.4737 | P77: 183572.0351 | Q77: 0
A78: Weighted Average Interest Rate | B78: 0.04908065669 | C78: 0.04908177516 | D78: 0.04907144163 | E78: 0.04905118997 | F78: 0.04907075751 | G78: 0.04906756206 | H78: 0.04986749173 | I78: 0.04984356906 | J78: 0.04902673438 | K78: 0.04858887506 | L78: 0.04781174415 | M78: 0.04744048216 | N78: 0.04846213656 | O78: 0.04941986161 | P78: 0.04870235334 | Q78: 0
A79: Weighted Average Maturity Date (years) | B79: 19.38890791 | C79: 19.13949335 | D79: 18.8512222 | E79: 18.57270588 | F79: 18.35340864 | G79: 18.09001559 | H79: 17.76260051 | I79: 17.37502636 | J79: 16.9938268 | K79: 16.75479501 | L79: 16.45104912 | M79: 16.04920719 | N79: 15.66721479 | O79: 15.39863797 | P79: 15.26182685 | Q79: 0
A80: Weighted Average Seasoning (months) | B80: 5.171577036 | C80: 8.193856287 | D80: 11.19603185 | E80: 14.18152274 | F80: 17.1857331 | G80: 20.20417788 | H80: 23.22805762 | I80: 26.19491952 | J80: 29.16415885 | K80: 32.17175525 | L80: 35.15524797 | M80: 38.26096831 | N80: 41.20760717 | O80: 44.24753775 | P80: 47.31505016 | Q80: 0
A81: % of Interest Only Mortgages (optional switching to repayment) | B81: 0.9407003213 | C81: 0.9412106303 | D81: 0.9412298504 | E81: 0.941387395 | F81: 0.9415078414 | G81: 0.9418531018 | H81: 0.9415720154 | I81: 0.9576419804 | J81: 0.9665390704 | K81: 0.9677369248 | L81: 0.9643647899 | M81: 0.9682444431 | N81: 0.9723484119 | O81: 0.9711723621 | P81: 0.9742229779 | Q81: 0
A82: % of Repayment Mortgages | B82: 0.0592996787 | C82: 0.05878936973 | D82: 0.05877014963 | E82: 0.05861260502 | F82: 0.05849215863 | G82: 0.05814689821 | H82: 0.05842798457 | I82: 0.04235801962 | J82: 0.03346092963 | K82: 0.03226307523 | L82: 0.03563521006 | M82: 0.03175555692 | N82: 0.02765158807 | O82: 0.0288276379 | P82: 0.02577702207 | Q82: 0
A83: % of Mortgages in London | B83: 0.1550078185 | C83: 0.1549962534 | D83: 0.1563078047 | E83: 0.1572892988 | F83: 0.1525403686 | G83: 0.1530603268 | H83: 0.1553610595 | I83: 0.1508284892 | J83: 0.1489552285 | K83: 0.1464717479 | L83: 0.1170308888 | M83: 0.1330046922 | N83: 0.1466102447 | O83: 0.122134541 | P83: 0.127919984 | Q83: 0
A84: % of Mortgages in the South East | B84: 0.3767924322 | C84: 0.376694821 | D84: 0.3717965865 | E84: 0.3766904249 | F84: 0.3680445822 | G84: 0.3691505287 | H84: 0.3624235002 | I84: 0.3524585162 | J84: 0.3551712368 | K84: 0.3653078353 | L84: 0.3566879706 | M84: 0.3630822224 | N84: 0.3554058022 | O84: 0.3677448211 | P84: 0.3760170424 | Q84: 0
A85: % of Owner Occupied Mortgages | B85: 0 | C85: 0 | D85: 0 | E85: 0 | F85: 0 | G85: 0 | H85: 0 | I85: 0 | J85: 0 | K85: 0 | L85: 0 | M85: 0 | N85: 0 | O85: 0 | P85: 0 | Q85: 0
A86: % of Investment Home Loans - Professional Landlords | B86: 0.7705419662 | C86: 0.7842141568 | D86: 0.7729893781 | E86: 0.7762482436 | F86: 0.7748750848 | G86: 0.7887450845 | H86: 0.7896409124 | I86: 0.7846464934 | J86: 0.7869942714 | K86: 0.7713543485 | L86: 0.767562914 | M86: 0.7591205174 | N86: 0.7629849701 | O86: 0.7580845583 | P86: 0.7581763683 | Q86: 0
A87: % of Investment Home Loans - Emerging Professional Landlords | B87: 0.2294580338 | C87: 0.2157858432 | D87: 0.2270106219 | E87: 0.2237517564 | F87: 0.2251249152 | G87: 0.2112549155 | H87: 0.2103590876 | I87: 0.2153535066 | J87: 0.2130057286 | K87: 0.2286456515 | L87: 0.232437086 | M87: 0.2408794826 | N87: 0.2370150299 | O87: 0.2419154417 | P87: 0.2418236317 | Q87: 0
A88: Weighted Average Interest Coverage Ratio (calculated at the origination date) | B88: 1.631667467 | C88: 1.630933798 | D88: 1.630435013 | E88: 1.628441221 | F88: 1.634221214 | G88: 1.632981629 | H88: 1.63368709 | I88: 1.644015636 | J88: 1.639463206 | K88: 1.66280966 | L88: 1.691836296 | M88: 1.646422293 | N88: 1.661059424 | O88: 1.667909295 | P88: 1.656198804 | Q88: 0
A89: Number of Properties in Possession | B89: 0 | C89: 0 | D89: 0 | E89: 0 | F89: 0 | G89: 0 | H89: 0 | I89: 0 | J89: 0 | K89: 0 | L89: 0 | M89: 0 | N89: 0 | O89: 0 | P89: 0 | Q89: 0
A90: Appointment of a Receiver of Rent | B90: 0 | C90: 0 | D90: 0 | E90: 0 | F90: 0 | G90: 0 | H90: 0 | I90: 0 | J90: 0 | K90: 0 | L90: 0 | M90: 0 | N90: 0 | O90: 0 | P90: 0 | Q90: 0
A91: PML Quarterly Losses | B91: 0 | C91: 0 | D91: 0 | E91: 0 | F91: 0 | G91: 0 | H91: 0 | I91: 0 | J91: 0 | K91: 0 | L91: 0 | M91: 0 | N91: 0 | O91: 0 | P91: 0 | Q91: 0
A92: Arrears excluding Receiver of Rent and Possession Cases
A93: Performing Loans | B93: 1 | C93: 1 | D93: 1 | E93: 1 | F93: 1 | G93: 1 | H93: 1 | I93: 0.995910801 | J93: 1 | K93: 1 | L93: 0.9945537779 | M93: 0.9938274764 | N93: 1 | O93: 1 | P93: 1 | Q93: 0
A94: >1 to 2 months arrears | B94: 0 | C94: 0 | D94: 0 | E94: 0 | F94: 0 | G94: 0 | H94: 0 | I94: 0 | J94: 0 | K94: 0 | L94: 0.005446222064 | M94: 0.0061725236 | N94: 0 | O94: 0 | P94: 0 | Q94: 0
A95: >2 to 3 months arrears | B95: 0 | C95: 0 | D95: 0 | E95: 0 | F95: 0 | G95: 0 | H95: 0 | I95: 0 | J95: 0 | K95: 0 | L95: 0 | M95: 0 | N95: 0 | O95: 0 | P95: 0 | Q95: 0
A96: >3 months arrears | B96: 0 | C96: 0 | D96: 0 | E96: 0 | F96: 0 | G96: 0 | H96: 0 | I96: 0.004089199015 | J96: 0 | K96: 0 | L96: 0 | M96: 0 | N96: 0 | O96: 0 | P96: 0 | Q96: 0
A97: Total | B97: =SUM(B93:B96) -> 1 | C97: 1 | D97: 1 | E97: 1 | F97: 1 | G97: 1 | H97: 1 | I97: 1 | J97: 1 | K97: 1 | L97: 1 | M97: 1 | N97: 1 | O97: 1 | P97: 1 | Q97: =SUM(Q93:Q96) -> 0
A99: Underlying Assets - Paragon Mortgages 2010 Mortgage Trust Originated Assets | B99: =+B69 -> 2015-02-27 | C99: 2015-05-29 | D99: 2015-08-28 | E99: 2015-11-30 | F99: 2016-02-29 | G99: 2016-05-31 | H99: =+H69 -> 2016-08-31 | I99: 2016-11-30 | J99: =+J69 -> 2017-02-28 | K99: 2017-05-31 | L99: =+L69 -> 2017-08-31 | M99: 2017-11-30 | N99: =+N69 -> 2018-02-28 | O99: 2018-05-31 | P99: =+P69 -> 2018-08-31 | Q99: 2018-11-30
A100: Weighted Average LTV | B100: 0.7188260449 | C100: 0.720368469 | D100: 0.7208291398 | E100: 0.7211522861 | F100: 0.7207031871 | G100: 0.7188182051 | H100: 0.7148777051 | I100: 0.7069617305 | J100: 0.7021635831 | K100: 0.7048263858 | L100: 0.7020117511 | M100: 0.6995974888 | N100: 0.6996673091 | O100: 0.6976075689 | P100: 0.6963618922 | Q100: 0
A101: Weighted Average Nationwide Indexed LTV | B101: 0.7119582077 | C101: 0.7132436005 | D101: 0.6904229046 | E101: 0.6824831418 | F101: 0.6756576822 | G101: 0.6696104536 | H101: 0.6475113332 | I101: 0.6444197194 | J101: 0.6430720687 | K101: 0.644867077 | L101: 0.6357085016 | M101: 0.6326595578 | N101: 0.6352926503 | O101: 0.6313907417 | P101: 0.6242818418 | Q101: 0
A102: Weighted Average Halifax Indexed LTV | B102: 0.7106228794 | C102: 0.6959895687 | D102: 0.6615489393 | E102: 0.6492074458 | F102: 0.6474975461 | G102: 0.6186640795 | H102: 0.60364818 | I102: n/a | J102: n/a | K102: n/a | L102: n/a | M102: n/a | N102: n/a | O102: n/a | P102: n/a | Q102: n/a
A103: % of Fixed Rate Mortgages (reverting to Libor plus a variable margin) | B103: 0.6719951048 | C103: 0.6858660449 | D103: 0.6966458357 | E103: 0.7001495255 | F103: 0.7036269158 | G103: 0.6601201637 | H103: 0.3587930981 | I103: 0.2200686222 | J103: 0.2446814517 | K103: 0.2961232475 | L103: 0.3296082828 | M103: 0.3199663369 | N103: 0.3493352386 | O103: 0.3844494299 | P103: 0.3923285623 | Q103: 0
A104: % of Libor Linked Mortgages (reverting to Libor plus a variable margin) | B104: 0.3280048952 | C104: 0.3141339551 | D104: 0.3033541643 | E104: 0.2998504745 | F104: 0.2943329867 | G104: 0.2968268986 | H104: 0.2802033755 | I104: 0.06025119081 | J104: 0.03407432928 | K104: 0.04675286926 | L104: 0.05508691556 | M104: 0.05925108807 | N104: 0.06534947921 | O104: 0.06558716007 | P104: 0.05275568567 | Q104: 0
A105: % of Libor Linked Mortgages plus a Variable Margin | B105: 0 | C105: 0 | D105: 0 | E105: 0 | F105: 0.002040097491 | G105: 0.04305293774 | H105: 0.3610035264 | I105: 0.7180077987 | J105: 0.719108207 | K105: 0.6571238832 | L105: 0.6153048017 | M105: 0.620782575 | N105: 0.5853152822 | O105: 0.5499634101 | P105: 0.5549157521 | Q105: 0
A106: % of Non Reversionary Libor Linked Mortgages | B106: 0 | C106: 0 | D106: 0 | E106: 0 | F106: 0 | G106: 0 | H106: 0 | I106: 0.001672388236 | J106: 0.002136011951 | K106: 0 | L106: 0 | M106: 0 | N106: 0 | O106: 0 | P106: 0 | Q106: 0
A107: Weighted Average Loan Size | B107: 153020.3444 | C107: 152075.3926 | D107: 151134.6912 | E107: 150963.8319 | F107: 150849.9726 | G107: 150409.8208 | H107: 149067.4999 | I107: 144595.1794 | J107: 144784.0217 | K107: 141084.9449 | L107: 136933.7554 | M107: 136232.0022 | N107: 135978.4012 | O107: 135066.6208 | P107: 135111.6531 | Q107: 0
A108: Weighted Average Interest Rate | B108: 0.04004756555 | C108: 0.04004613147 | D108: 0.04002368058 | E108: 0.04002316062 | F108: 0.04002535675 | G108: 0.04053252738 | H108: 0.04442830044 | I108: 0.04844305479 | J108: 0.0484592409 | K108: 0.04767187386 | L108: 0.04701235358 | M108: 0.046933699 | N108: 0.04780739141 | O108: 0.04856683128 | P108: 0.04808147184 | Q108: 0
A109: Weighted Average Maturity Date (years) | B109: 20.05178779 | C109: 19.79395695 | D109: 19.54699642 | E109: 19.32908636 | F109: 19.09325973 | G109: 18.81960229 | H109: 18.55349136 | I109: 18.35320337 | J109: 17.96618198 | K109: 17.69123335 | L109: 17.46162477 | M109: 17.10874811 | N109: 16.89518367 | O109: 16.58420435 | P109: 16.20061603 | Q109: 0
A110: Weighted Average Seasoning (months) | B110: 5.586194797 | C110: 8.59897382 | D110: 11.62126249 | E110: 14.60795758 | F110: 17.59890091 | G110: 20.61099433 | H110: 23.51043031 | I110: 26.47463709 | J110: 29.46499962 | K110: 32.55699193 | L110: 35.53245812 | M110: 38.51548068 | N110: 41.45984069 | O110: 44.50117109 | P110: 47.49426294 | Q110: 0
A111: % of Interest Only Mortgages (optional switching to repayment) | B111: 0.9241891837 | C111: 0.9230800707 | D111: 0.9222061614 | E111: 0.9218967295 | F111: 0.9192906144 | G111: 0.9173200624 | H111: 0.9225576907 | I111: 0.916062425 | J111: 0.9234395776 | K111: 0.9230180905 | L111: 0.916735983 | M111: 0.9072578565 | N111: 0.9165051062 | O111: 0.9179727869 | P111: 0.9238065997 | Q111: 0
A112: % of Repayment Mortgages | B112: 0.07581081629 | C112: 0.07691992934 | D112: 0.07779383857 | E112: 0.07810327051 | F112: 0.08070938557 | G112: 0.08267993763 | H112: 0.07744230928 | I112: 0.08393757503 | J112: 0.0765604224 | K112: 0.07698190951 | L112: 0.083264017 | M112: 0.09274214348 | N112: 0.08349489384 | O112: 0.08202721314 | P112: 0.07619340031 | Q112: 0
A113: % of Mortgages in London | B113: 0.2292310394 | C113: 0.2264420717 | D113: 0.2252440915 | E113: 0.2253630066 | F113: 0.2225025869 | G113: 0.220293326 | H113: 0.2125131311 | I113: 0.2066211535 | J113: 0.1979617392 | K113: 0.177630551 | L113: 0.1778746064 | M113: 0.1765329076 | N113: 0.1796906472 | O113: 0.1819348605 | P113: 0.1864360403 | Q113: 0
A114: % of Mortgages in the South East | B114: 0.3660280728 | C114: 0.3651782027 | D114: 0.3680853842 | E114: 0.3682758508 | F114: 0.371119429 | G114: 0.3672642975 | H114: 0.3650885108 | I114: 0.3370422827 | J114: 0.3447013776 | K114: 0.3386295953 | L114: 0.3317576848 | M114: 0.3250959979 | N114: 0.3158316856 | O114: 0.3274874458 | P114: 0.3327880499 | Q114: 0
A115: % of Owner Occupied Mortgages | B115: 0 | C115: 0 | D115: 0 | E115: 0 | F115: 0 | G115: 0 | H115: 0 | I115: 0 | J115: 0 | K115: 0 | L115: 0 | M115: 0 | N115: 0 | O115: 0 | P115: 0 | Q115: 0
A116: % of Investment Home Loans - Professional Landlords | B116: 0.4467623127 | C116: 0.4574741515 | D116: 0.4604313887 | E116: 0.4632177074 | F116: 0.4623708 | G116: 0.4654220942 | H116: 0.4635938825 | I116: 0.4773478293 | J116: 0.475481464 | K116: 0.4750077483 | L116: 0.4891252485 | M116: 0.4723040806 | N116: 0.4592568769 | O116: 0.4605054847 | P116: 0.4613704337 | Q116: 0
A117: % of Investment Home Loans - Emerging Professional Landlords | B117: 0.5532376873 | C117: 0.5425258485 | D117: 0.5395686113 | E117: 0.5367822926 | F117: 0.5376292 | G117: 0.5345779058 | H117: 0.5364061175 | I117: 0.5226521707 | J117: 0.524518536 | K117: 0.5249922517 | L117: 0.5108747515 | M117: 0.5276959194 | N117: 0.5407431231 | O117: 0.5394945153 | P117: 0.5386295663 | Q117: 0
A118: Weighted Average Interest Coverage Ratio (calculated at the origination date) | B118: 1.416294568 | C118: 1.417809763 | D118: 1.418717527 | E118: 1.416024254 | F118: 1.417396796 | G118: 1.416092261 | H118: 1.420949486 | I118: 1.420648257 | J118: 1.417642493 | K118: 1.423028439 | L118: 1.418982976 | M118: 1.425658642 | N118: 1.431593371 | O118: 1.43612312 | P118: 1.426701365 | Q118: 0
A119: Number of Properties in Possession | B119: 0 | C119: 0 | D119: 0 | E119: 0 | F119: 0 | G119: 0 | H119: 0 | I119: 0 | J119: 0 | K119: 0 | L119: 0 | M119: 0 | N119: 0 | O119: 0 | P119: 0 | Q119: 0
A120: Appointment of a Receiver of Rent | B120: 0 | C120: 0 | D120: 0 | E120: 0 | F120: 0 | G120: 0 | H120: 0 | I120: 0 | J120: 0 | K120: 0 | L120: 0 | M120: 1 | N120: 2 | O120: 1 | P120: 1 | Q120: 0
A121: MTL Quarterly Losses | B121: 0 | C121: 0 | D121: 0 | E121: 0 | F121: 0 | G121: 0 | H121: 0 | I121: 0 | J121: 0 | K121: 0 | L121: 0 | M121: 0 | N121: 0 | O121: 0 | P121: 0 | Q121: 0
A122: Arrears excluding Receiver of Rent and Possession Cases
A123: Performing Loans | B123: 1 | C123: 1 | D123: 1 | E123: 1 | F123: 1 | G123: 1 | H123: 0.9990148235 | I123: 1 | J123: 0.9987211892 | K123: 1 | L123: 0.997108889 | M123: 1 | N123: 1 | O123: 1 | P123: 1 | Q123: 0
A124: >1 to 2 months arrears | B124: 0 | C124: 0 | D124: 0 | E124: 0 | F124: 0 | G124: 0 | H124: 0.0009851765024 | I124: 0 | J124: 0.001278810804 | K124: 0 | L124: 0 | M124: 0 | N124: 0 | O124: 0 | P124: 0 | Q124: 0
A125: >2 to 3 months arrears | B125: 0 | C125: 0 | D125: 0 | E125: 0 | F125: 0 | G125: 0 | H125: 0 | I125: 0 | J125: 0 | K125: 0 | L125: 0.002891111014 | M125: 0 | N125: 0 | O125: 0 | P125: 0 | Q125: 0
A126: >3 months arrears | B126: 0 | C126: 0 | D126: 0 | E126: 0 | F126: 0 | G126: 0 | H126: 0 | I126: 0 | J126: 0 | K126: 0 | L126: 0 | M126: 0 | N126: 0 | O126: 0 | P126: 0 | Q126: 0
A127: Total | B127: =SUM(B123:B126) -> 1 | C127: 1 | D127: 1 | E127: 1 | F127: 1 | G127: 1 | H127: 1 | I127: 1 | J127: 1 | K127: 1 | L127: 1 | M127: 1 | N127: 1 | O127: 1 | P127: 1 | Q127: =SUM(Q123:Q126) -> 0

Sheet Graphs
K2: PARAGON MORTGAGES (NO.21) PLC
